bitfinex-derivatives/quotes_BTCF0:USTF0_20220102
["timestamp","ask_amount","ask_price","bid_price","bid_amount"]
[1641087948305,0.06459,47402.0,47401.0,0.981]
[1641087948504,1.48028395,47402.0,47401.0,0.981]
[1641087948805,1.48028395,47402.0,47401.0,0.8]
[1641087950520,0.29485321,47402.0,47401.0,0.8]
[1641087951324,1.48011402,47402.0,47401.0,0.8]
[1641087954229,0.29485321,47402.0,47401.0,0.8]
[1641087954730,1.48004187,47402.0,47401.0,0.8]
[1641087960640,0.29485321,47402.0,47401.0,0.8]
[1641087963844,0.29485321,47402.0,47396.0,0.59921133]
[1641087964046,0.18,47398.0,47395.0,0.59921133]
[1641087964846,0.85015037,47396.0,47391.0,0.83888017]
[1641087965049,0.18,47392.0,47385.0,1.31900721]
[1641087965248,0.18,47386.0,47385.0,1.31900721]
[1641087966147,0.18,47386.0,47378.0,1.9846]
[1641087966348,0.18,47386.0,47377.0,1.31900721]
[1641087966951,0.14033567,47386.0,47377.0,1.31900721]
[1641087967151,0.35466386,47383.0,47378.0,0.24620347]
[1641087968052,0.35466386,47383.0,47377.0,0.182]
[1641087968654,0.35466386,47384.0,47378.0,0.24620347]
[1641087969666,0.52966386,47384.0,47378.0,0.43020347]
[1641087970068,0.35466386,47383.0,47378.0,0.184]
[1641087970966,0.35466386,47383.0,47376.0,1.31900721]
[1641087971566,0.52966386,47383.0,47379.0,0.24620347]
[1641087972167,0.52966386,47383.0,47377.0,0.24620347]
[1641087973271,0.35466386,47382.0,47377.0,0.24620347]
[1641087973669,0.35466386,47382.0,47377.0,0.43120347]
[1641087974170,0.175,47383.0,47381.0,0.83902038]
[1641087974171,0.52966386,47383.0,47381.0,0.83902038]
[1641087975072,0.35466386,47383.0,47382.0,0.59929987]
[1641087975471,0.35466386,47383.0,47382.0,0.68119987]
[1641087975669,0.52966386,47383.0,47382.0,0.86619987]
[1641087976071,0.52966386,47383.0,47382.0,0.2669]
[1641087976473,0.52966386,47383.0,47382.0,1.10592038]
[1641087976871,0.35466386,47383.0,47382.0,0.92092038]
[1641087977071,0.35466386,47384.0,47382.0,1.16712385]
[1641087977570,0.53166386,47384.0,47382.0,1.35212385]
[1641087977773,0.53166386,47384.0,47382.0,1.10592038]
[1641087978572,0.53166386,47384.0,47383.0,0.84547832]
[1641087978972,0.35466386,47384.0,47383.0,0.84547832]
[1641087979172,0.35466386,47384.0,47383.0,0.24620347]
[1641087979572,0.52866386,47384.0,47383.0,0.43120347]
[1641087980276,0.174,47384.0,47383.0,1.27022385]
[1641087981075,0.174,47384.0,47383.0,1.03049778]
[1641087981575,0.342,47384.0,47383.0,1.18349778]
[1641087981974,0.69573427,47384.0,47383.0,1.18349778]
[1641087982777,0.342,47384.0,47383.0,1.18349778]
[1641087983579,0.169,47384.0,47383.0,1.00049778]
[1641087983776,0.169,47384.0,47383.0,0.75429431]
[1641087984278,0.169,47384.0,47383.0,0.155]
[1641087985179,0.14033567,47386.0,47376.0,0.59929431]
[1641087985682,0.169,47384.0,47383.0,0.155]
[1641087987084,0.14033567,47386.0,47376.0,0.59929431]
[1641087987584,0.30133567,47386.0,47376.0,0.74329431]
[1641087987784,0.30133567,47386.0,47377.0,0.316891]
[1641087988184,0.30133567,47386.0,47376.0,0.74329431]
[1641087988785,0.30133567,47386.0,47377.0,0.315078]
[1641087989185,0.30133567,47386.0,47376.0,0.74329431]
[1641087989485,0.14033567,47386.0,47376.0,0.59929431]
[1641087989784,0.30333567,47386.0,47377.0,0.147]
[1641087990987,0.14033567,47386.0,47376.0,0.59929431]
[1641087991588,0.30333567,47386.0,47376.0,0.74629431]
[1641087991889,0.30333567,47386.0,47377.0,0.82632955]
[1641087992790,0.30333567,47386.0,47377.0,0.59929431]
[1641087992991,0.14033567,47386.0,47377.0,0.59929431]
[1641087993589,0.14033567,47386.0,47377.0,0.74629431]
[1641087993792,0.30333567,47386.0,47377.0,0.74629431]
[1641087994089,0.30333567,47386.0,47378.0,0.18]
[1641087994691,0.30333567,47386.0,47377.0,0.74629431]
[1641087994897,0.14033567,47386.0,47377.0,0.59929431]
[1641087995599,0.32433567,47386.0,47377.0,0.77829431]
[1641087996997,0.14033567,47386.0,47377.0,0.59929431]
[1641087997599,0.14733567,47386.0,47377.0,0.78529431]
[1641087998898,0.14033567,47386.0,47377.0,0.59929431]
[1641087999600,0.28933567,47386.0,47377.0,0.77629431]
[1641088000301,0.28933567,47386.0,47377.0,0.177]
[1641088001802,0.43333567,47386.0,47377.0,0.354]
[1641088002304,2.90268578,47386.0,47377.0,0.354]
[1641088003204,2.60968578,47386.0,47375.0,0.59929431]
[1641088003506,2.60968578,47386.0,47374.0,0.64040146]
[1641088003704,0.14033567,47381.0,47375.0,0.113]
[1641088005206,0.14033567,47381.0,47374.0,0.64040146]
[1641088005807,0.16233567,47381.0,47374.0,0.82640146]
[1641088007009,0.16233567,47381.0,47374.0,0.64040146]
[1641088007010,0.14033567,47381.0,47374.0,0.64040146]
[1641088007711,0.27433567,47381.0,47374.0,0.82540146]
[1641088008312,0.27433567,47381.0,47374.0,0.22610715]
[1641088008517,0.3527483,47377.0,47375.0,0.24649149]
[1641088009816,0.3527483,47377.0,47375.0,0.44049149]
[1641088011129,0.3527483,47377.0,47376.0,0.24649149]
[1641088011728,0.3527483,47377.0,47376.0,0.44049149]
[1641088013230,0.3527483,47377.0,47376.0,0.24649149]
[1641088013830,0.3527483,47377.0,47376.0,0.44049149]
[1641088014733,0.3527483,47379.0,47376.0,0.44049149]
[1641088015733,0.3527483,47379.0,47377.0,0.24649149]
[1641088015935,0.3527483,47379.0,47378.0,1.19906779]
[1641088016333,0.3527483,47379.0,47377.0,0.24649149]
[1641088016334,0.3527483,47379.0,47376.0,0.191]
[1641088016934,0.3527483,47379.0,47378.0,1.19906818]
[1641088017836,0.3527483,47379.0,47378.0,1.39106818]
[1641088018640,0.3527483,47379.0,47378.0,0.192]
[1641088018838,0.3527483,47379.0,47378.0,0.43849149]
[1641088019037,0.3527483,47379.0,47378.0,0.24649149]
[1641088019737,0.3527483,47379.0,47378.0,1.63656434]
[1641088020339,0.3527483,47379.0,47378.0,0.43749149]
[1641088020541,0.3527483,47380.0,47378.0,0.43749149]
[1641088021039,0.3527483,47380.0,47378.0,0.24649149]
[1641088021438,0.3527483,47379.0,47378.0,1.19906493]
[1641088021740,0.3527483,47379.0,47378.0,1.38806493]
[1641088022042,0.3527483,47379.0,47378.0,0.189]
[1641088022240,0.3527483,47380.0,47378.0,0.189]
[1641088022940,0.3527483,47380.0,47379.0,1.19904261]
[1641088023440,0.3527483,47380.0,47378.0,0.189]
[1641088023641,0.3527483,47380.0,47374.0,0.04110699]
[1641088023845,0.3527483,47380.0,47379.0,0.189]
[1641088025644,0.3527483,47380.0,47376.0,1.31892183]
[1641088025846,0.3527483,47380.0,47379.0,0.189]
[1641088026045,0.49308397,47381.0,47379.0,0.189]
[1641088026848,0.49308397,47381.0,47380.0,1.19900321]
[1641088027747,0.49308397,47381.0,47380.0,1.38600321]
[1641088028848,0.49308397,47381.0,47380.0,0.187]
[1641088029048,0.23029732,47381.0,47380.0,0.187]
[1641088029248,0.23029732,47381.0,47379.0,1.31892183]
[1641088029748,0.23029732,47381.0,47379.0,1.50592183]
[1641088029948,0.08996165,47381.0,47379.0,1.50592183]
[1641088030148,0.82646945,47382.0,47379.0,1.50592183]
[1641088030349,0.588422,47380.0,47379.0,1.50592183]
[1641088031151,0.588422,47380.0,47379.0,1.31892183]
[1641088031752,0.588422,47380.0,47379.0,0.189]
[1641088032553,0.588422,47380.0,47379.0,1.50792183]
[1641088033051,0.588422,47380.0,47379.0,1.31892183]
[1641088033451,0.588422,47380.0,47378.0,1.31892183]
[1641088033851,0.588422,47380.0,47379.0,0.192]
[1641088034051,0.08996326,47380.0,47379.0,0.192]
[1641088034657,0.82646945,47381.0,47379.0,0.192]
[1641088034852,0.82646945,47381.0,47379.0,1.51092183]
[1641088035052,0.82646945,47381.0,47379.0,1.31892183]
[1641088035656,0.82646945,47382.0,47380.0,1.19920654]
[1641088036956,0.82646945,47382.0,47380.0,1.40425295]
[1641088037757,0.08996339,47381.0,47380.0,1.58925295]
[1641088039058,0.82646945,47382.0,47380.0,1.58925295]
[1641088039258,0.82646945,47382.0,47380.0,1.40425295]
[1641088039861,0.82646945,47382.0,47380.0,1.58925295]
[1641088040160,0.82646945,47382.0,47380.0,1.38420654]
[1641088041060,0.82646945,47382.0,47381.0,0.20504641]
[1641088041761,0.91643131,47382.0,47381.0,0.39004641]
[1641088041962,0.91643131,47382.0,47381.0,1.58925295]
[1641088043063,0.91643131,47382.0,47381.0,1.40425295]
[1641088043864,1.09243131,47382.0,47381.0,1.58725295]
[1641088044480,0.26596186,47382.0,47381.0,1.66959295]
[1641088044678,0.26596186,47382.0,47381.0,2.46959295]
[1641088045081,1.18058085,47385.0,47383.0,0.42209131]
[1641088045279,1.18058085,47385.0,47384.0,0.02110123]
[1641088045578,1.18058085,47385.0,47384.0,0.33368023]
[1641088045779,1.18058085,47385.0,47384.0,0.52968023]
[1641088045979,1.18058085,47385.0,47384.0,0.53068023]
[1641088046181,1.18058085,47389.0,47384.0,0.53068023]
[1641088046480,1.18058085,47389.0,47384.0,0.52968023]
[1641088046679,1.18058085,47389.0,47386.0,0.14033567]
[1641088047980,1.18058085,47389.0,47386.0,0.33733567]
[1641088048982,1.29523217,47392.0,47388.0,0.59956498]
[1641088049783,1.29523217,47392.0,47388.0,0.79456498]
[1641088050986,1.73567614,47395.0,47388.0,0.195]
[1641088050987,1.29523217,47391.0,47388.0,0.195]
[1641088051183,1.29523217,47391.0,47387.0,0.59956498]
[1641088051787,1.29523217,47391.0,47387.0,0.79456498]
[1641088053283,1.29523217,47391.0,47387.0,0.59956498]
[1641088053884,1.29523217,47391.0,47387.0,0.79556498]
[1641088055187,1.29523217,47391.0,47387.0,0.59956498]
[1641088055889,1.29523217,47391.0,47387.0,0.79456498]
[1641088056890,1.29523217,47392.0,47387.0,0.195]
[1641088057190,1.29523217,47392.0,47386.0,0.73990065]
[1641088057894,1.29523217,47392.0,47386.0,0.93590065]
[1641088059094,1.29523217,47392.0,47386.0,0.33633567]
[1641088060397,1.29523217,47391.0,47386.0,0.33633567]
[1641088060594,1.29523217,47391.0,47386.0,0.93590065]
[1641088061294,1.29523217,47391.0,47386.0,0.73990065]
[1641088061897,1.3851921,47392.0,47387.0,0.85568646]
[1641088063799,1.3851921,47392.0,47387.0,1.05268646]
[1641088064299,1.18432715,47388.0,47387.0,0.79656498]
[1641088065202,1.18432715,47388.0,47387.0,0.85568822]
[1641088066003,1.18432715,47388.0,47387.0,1.05368822]
[1641088067204,1.18432715,47388.0,47387.0,0.85568822]
[1641088067905,1.18432715,47388.0,47387.0,1.05368822]
[1641088068308,1.18432715,47389.0,47387.0,1.05368822]
[1641088068906,1.18432715,47388.0,47387.0,0.79756498]
[1641088069306,1.18432715,47388.0,47387.0,0.59956498]
[1641088069506,1.18432715,47388.0,47387.0,0.81505513]
[1641088069907,1.18432715,47388.0,47387.0,1.01205513]
[1641088070308,1.18432715,47388.0,47387.0,0.197]
[1641088071309,1.18432715,47388.0,47386.0,0.7610024]
[1641088072009,1.18432715,47388.0,47386.0,0.9580024]
[1641088074512,1.18432715,47388.0,47387.0,0.8150542]
[1641088075212,1.18432715,47388.0,47387.0,0.59956498]
[1641088075415,1.18432715,47388.0,47386.0,0.73990065]
[1641088076016,1.18432715,47388.0,47386.0,0.93690065]
[1641088076415,1.24220715,47388.0,47386.0,0.79656498]
[1641088076717,0.05788,47388.0,47386.0,0.79656498]
[1641088076916,0.05788,47388.0,47386.0,0.197]
[1641088077216,0.05788,47388.0,47385.0,0.59956498]
[1641088077617,0.08995993,47387.0,47385.0,0.59956498]
[1641088077818,0.08995993,47387.0,47384.0,0.59956498]
[1641088078018,0.08995993,47387.0,47385.0,0.196]
[1641088078618,0.08995993,47387.0,47385.0,0.79556498]
[1641088081219,0.08995993,47387.0,47385.0,0.59956498]
[1641088082021,0.08995993,47387.0,47385.0,0.79556498]
[1641088083224,0.08995993,47387.0,47385.0,0.59956498]
[1641088084025,0.08995993,47387.0,47385.0,0.79556498]
[1641088084226,0.08995993,47387.0,47386.0,0.59956498]
[1641088085027,0.08995993,47387.0,47385.0,0.79556498]
[1641088085227,0.08995993,47387.0,47385.0,0.59956498]
[1641088085927,0.08995993,47387.0,47385.0,0.79556498]
[1641088087328,0.08995993,47387.0,47385.0,0.59956498]
[1641088088032,0.08995993,47387.0,47385.0,0.79556498]
[1641088089233,0.08995993,47387.0,47385.0,0.59956498]
[1641088090035,0.08995993,47387.0,47385.0,0.79556498]
[1641088091337,0.08995993,47387.0,47385.0,0.59956498]
[1641088091938,0.08995993,47387.0,47385.0,0.79656498]
[1641088093846,0.08995993,47387.0,47385.0,0.59956498]
[1641088094142,0.08995993,47387.0,47385.0,0.79656498]
[1641088095344,0.08995993,47387.0,47385.0,0.59956498]
[1641088095946,0.08995993,47387.0,47385.0,0.79556498]
[1641088097449,0.08995993,47387.0,47385.0,0.59956498]
[1641088098048,0.08995993,47387.0,47385.0,0.79556498]
[1641088099449,0.08995993,47387.0,47385.0,0.59956498]
[1641088100049,0.08995993,47387.0,47385.0,0.79556498]
[1641088101449,0.08995993,47387.0,47385.0,0.59956498]
[1641088101952,1.3851921,47387.0,47386.0,0.21843209]
[1641088104053,1.3851921,47387.0,47386.0,0.41443209]
[1641088104255,0.08995993,47387.0,47386.0,0.79571688]
[1641088104853,0.08995993,47387.0,47386.0,1.01414897]
[1641088105354,0.08995993,47387.0,47386.0,0.81814897]
[1641088105854,0.08995993,47387.0,47386.0,0.59971688]
[1641088106055,0.08995993,47387.0,47386.0,0.79571688]
[1641088107156,0.15295993,47387.0,47386.0,0.79571688]
[1641088107456,0.15295993,47387.0,47386.0,0.81814897]
[1641088107958,0.15295993,47387.0,47386.0,1.01014897]
[1641088108256,0.15295993,47387.0,47386.0,0.192]
[1641088109355,0.15295993,47387.0,47384.0,0.59971688]
[1641088109960,0.15295993,47387.0,47384.0,0.79371688]
[1641088110358,0.18,47385.0,47384.0,0.79371688]
[1641088110557,1.284,47385.0,47381.0,1.19913094]
[1641088110759,1.284,47385.0,47376.0,0.3445]
[1641088110760,0.18,47382.0,47376.0,0.3445]
[1641088110960,0.18,47377.0,47376.0,0.3445]
[1641088111160,0.27416,47377.0,47376.0,0.3445]
[1641088111360,0.27416,47377.0,47374.0,0.02]
[1641088112064,0.45916,47377.0,47374.0,0.178]
[1641088112261,0.54911993,47377.0,47374.0,0.178]
[1641088113462,0.36411993,47377.0,47374.0,0.02]
[1641088113665,0.08995993,47376.0,47375.0,0.08998295]
[1641088116063,0.27495993,47376.0,47375.0,0.24298295]
[1641088118067,0.27495993,47376.0,47375.0,0.24198295]
[1641088119370,1.39388009,47376.0,47375.0,0.08998295]
[1641088120073,1.57888009,47376.0,47375.0,0.24198295]
[1641088121074,1.57888009,47376.0,47375.0,0.152]
[1641088121476,1.39388009,47376.0,47374.0,0.02]
[1641088122076,1.57988009,47376.0,47374.0,0.188]
[1641088122983,1.48992016,47376.0,47375.0,0.08998227]
[1641088123575,1.30392016,47376.0,47375.0,0.08998227]
[1641088124182,1.48892016,47376.0,47375.0,0.24498227]
[1641088124376,1.48892016,47376.0,47375.0,0.155]
[1641088124976,1.84329447,47376.0,47375.0,0.155]
[1641088125177,0.53937431,47376.0,47375.0,0.155]
[1641088125377,0.35437431,47376.0,47374.0,0.02]
[1641088126178,0.54037431,47376.0,47374.0,0.188]
[1641088127977,0.35437431,47376.0,47374.0,0.02]
[1641088128177,0.54037431,47376.0,47374.0,0.188]
[1641088129378,0.35437431,47376.0,47374.0,0.02]
[1641088130080,0.35437431,47376.0,47374.0,0.208]
[1641088130482,1.08533383,47378.0,47374.0,0.208]
[1641088130680,0.50450398,47378.0,47374.0,0.208]
[1641088131480,0.50450398,47378.0,47374.0,0.02]
[1641088131686,0.35437431,47377.0,47374.0,0.02]
[1641088132082,0.35437431,47377.0,47374.0,0.2]
[1641088133982,0.35437431,47377.0,47374.0,0.02]
[1641088134194,0.51137431,47377.0,47374.0,0.207]
[1641088135396,0.35437431,47377.0,47374.0,0.02]
[1641088136196,0.52937431,47377.0,47374.0,0.203]
[1641088137398,0.35437431,47377.0,47374.0,0.02]
[1641088138200,0.52637431,47377.0,47374.0,0.201]
[1641088138600,0.35437431,47376.0,47374.0,0.201]
[1641088139500,0.35437431,47377.0,47374.0,0.02]
[1641088140202,0.51437431,47377.0,47374.0,0.207]
[1641088141404,0.35437431,47377.0,47374.0,0.02]
[1641088141606,0.35437431,47376.0,47374.0,0.02]
[1641088142107,0.35437431,47376.0,47374.0,0.21]
[1641088144407,0.60041785,47378.0,47374.0,0.21]
[1641088144608,0.91975615,47377.0,47374.0,0.21]
[1641088144911,0.59062385,47376.0,47374.0,0.21]
[1641088145508,0.35512911,47375.0,47374.0,0.02]
[1641088146211,0.35512911,47375.0,47374.0,0.212]
[1641088147411,0.35512911,47375.0,47374.0,0.02]
[1641088147712,0.35512911,47376.0,47374.0,0.02]
[1641088148112,0.35512911,47376.0,47374.0,0.212]
[1641088148914,0.009794,47378.0,47374.0,0.212]
[1641088149318,1.39695834,47377.0,47375.0,0.08997927]
[1641088149715,1.39695834,47377.0,47376.0,0.5998217]
[1641088150117,1.55495834,47377.0,47376.0,0.5998217]
[1641088150917,1.55495834,47377.0,47375.0,0.87680097]
[1641088151418,0.09303818,47376.0,47375.0,1.3998217]
[1641088152122,0.09303818,47376.0,47375.0,1.5928217]
[1641088152320,0.09303818,47376.0,47375.0,0.993]
[1641088152530,0.09303818,47376.0,47375.0,2.28073665]
[1641088152723,1.27881011,47376.0,47375.0,2.28073665]
[1641088153222,1.27881011,47376.0,47375.0,1.08297508]
[1641088153524,0.83032287,47376.0,47375.0,0.88997508]
[1641088154125,0.83032287,47376.0,47375.0,1.08297508]
[1641088155226,1.18577193,47378.0,47375.0,1.08297508]
[1641088156126,1.18577193,47378.0,47376.0,0.08997508]
[1641088156326,1.18577193,47378.0,47376.0,1.28950431]
[1641088157128,1.30392016,47381.0,47376.0,1.3398649]
[1641088157129,1.18577193,47377.0,47376.0,1.3398649]
[1641088157329,1.18577193,47377.0,47376.0,1.5198649]
[1641088157629,1.18577193,47377.0,47376.0,1.42983998]
[1641088158129,1.18577193,47377.0,47376.0,1.62383998]
[1641088158529,1.18577193,47378.0,47376.0,1.62383998]
[1641088158729,1.18577193,47378.0,47376.0,1.80383998]
[1641088159130,1.18577193,47378.0,47377.0,0.08997508]
[1641088160230,1.18577193,47378.0,47377.0,0.28197508]
[1641088161432,1.18577193,47378.0,47377.0,0.08997508]
[1641088162231,1.18577193,47378.0,47377.0,0.28497508]
[1641088163434,1.18577193,47379.0,47377.0,1.28950431]
[1641088164135,1.18577193,47378.0,47377.0,1.28950431]
[1641088164334,1.18577193,47378.0,47377.0,1.48450431]
[1641088165036,0.59278816,47378.0,47377.0,0.8843397]
[1641088165235,0.59278816,47378.0,47377.0,1.0643397]
[1641088165442,0.59278816,47378.0,47377.0,0.6893397]
[1641088165644,0.59278816,47378.0,47377.0,0.8693397]
[1641088165943,0.59278816,47379.0,47377.0,0.8693397]
[1641088166143,0.59278816,47379.0,47377.0,0.8843397]
[1641088166646,0.59278816,47379.0,47377.0,0.79436462]
[1641088166843,0.59278816,47378.0,47377.0,0.79436462]
[1641088167548,0.59278816,47378.0,47376.0,0.73970029]
[1641088168356,0.59278816,47378.0,47377.0,0.68933663]
[1641088168955,0.59278816,47378.0,47377.0,0.59936462]
[1641088169156,0.59278816,47378.0,47376.0,0.93470029]
[1641088169660,0.59278816,47378.0,47376.0,0.73970029]
[1641088169857,0.59278816,47378.0,47376.0,0.14033567]
[1641088170157,0.59278816,47378.0,47376.0,0.33633567]
[1641088171557,0.82990343,47380.0,47376.0,0.73970029]
[1641088171558,0.59278816,47379.0,47376.0,0.73970029]
[1641088172162,0.59278816,47379.0,47376.0,0.93470029]
[1641088173461,0.59278816,47379.0,47376.0,0.73970029]
[1641088174163,0.59278816,47379.0,47376.0,0.93470029]
[1641088174763,0.59278816,47379.0,47376.0,1.11470029]
[1641088175561,0.59278816,47379.0,47376.0,0.91970029]
[1641088176163,0.59278816,47378.0,47376.0,0.32033567]
[1641088176364,0.59278816,47378.0,47376.0,0.51533567]
[1641088176663,0.59278816,47378.0,47376.0,0.33533567]
[1641088177668,0.59278816,47378.0,47376.0,0.14033567]
[1641088178166,0.59278816,47379.0,47376.0,0.93570029]
[1641088178867,0.59278816,47379.0,47376.0,1.02567219]
[1641088179268,0.59278816,47379.0,47376.0,0.93570029]
[1641088179470,0.59278816,47379.0,47376.0,0.73970029]
[1641088180173,0.59278816,47379.0,47376.0,0.93470029]
[1641088181376,1.42269159,47379.0,47377.0,0.08997193]
[1641088181572,0.59278816,47378.0,47377.0,0.68933655]
[1641088182174,0.59278816,47378.0,47377.0,0.88533655]
[1641088183576,0.59278816,47378.0,47377.0,0.68933655]
[1641088184176,0.82990343,47380.0,47377.0,0.79536462]
[1641088184378,0.82990343,47379.0,47377.0,0.196]
[1641088184777,0.59267039,47378.0,47377.0,0.196]
[1641088185479,0.92386378,47379.0,47377.0,0.196]
[1641088185677,0.92386378,47379.0,47376.0,0.73970029]
[1641088185678,0.82990343,47379.0,47376.0,0.73970029]
[1641088185877,0.82990343,47379.0,47376.0,0.91970029]
[1641088186179,0.59271219,47378.0,47377.0,0.68933589]
[1641088187479,0.92386378,47380.0,47377.0,0.59936462]
[1641088187678,0.14033567,47386.0,47376.0,0.32033567]
[1641088187679,0.82990343,47379.0,47376.0,0.91970029]
[1641088187878,0.82990343,47379.0,47376.0,0.73970029]
[1641088188082,0.82990343,47379.0,47377.0,0.68933632]
[1641088188281,0.59253267,47378.0,47377.0,0.68933632]
[1641088189379,0.09396035,47380.0,47377.0,0.0899717]
[1641088189580,1.39788051,47379.0,47377.0,0.0899717]
[1641088190184,1.57188051,47379.0,47377.0,0.2659717]
[1641088190482,0.09396035,47378.0,47377.0,0.2659717]
[1641088191384,0.09396035,47378.0,47377.0,0.176]
[1641088191584,0.09396035,47378.0,47376.0,0.83911046]
[1641088192185,0.24996035,47378.0,47376.0,1.02211046]
[1641088192385,1.45992016,47378.0,47376.0,1.11208851]
[1641088193486,1.45992016,47378.0,47377.0,0.08997805]
[1641088193689,1.30392016,47378.0,47377.0,0.08997805]
[1641088194189,0.174,47378.0,47377.0,0.18]
[1641088196194,0.146,47378.0,47377.0,0.184]
[1641088197595,1.30331241,47379.0,47374.0,0.02]
[1641088198295,1.47731241,47379.0,47374.0,0.197]
[1641088199396,1.18463453,47376.0,47374.0,0.197]
[1641088199598,1.25298453,47376.0,47374.0,0.02]
[1641088200200,1.43498453,47376.0,47374.0,0.189]
[1641088200699,1.61498453,47376.0,47374.0,0.189]
[1641088200899,1.18463453,47375.0,47374.0,0.189]
[1641088201305,0.43035,47376.0,47374.0,0.189]
[1641088201498,0.24835,47376.0,47374.0,0.02]
[1641088201909,0.14033567,47375.0,47374.0,0.02]
[1641088204313,0.32733567,47375.0,47374.0,0.174]
[1641088205613,0.14033567,47375.0,47374.0,0.02]
[1641088206214,0.50033567,47375.0,47374.0,0.102]
[1641088206518,0.32033567,47375.0,47374.0,0.102]
[1641088207615,0.14033567,47375.0,47374.0,0.02]
[1641088208216,0.28633567,47375.0,47374.0,0.16]
[1641088209020,0.37702739,47375.0,47374.0,0.16]
[1641088209618,0.23102739,47375.0,47374.0,0.02]
[1641088210318,0.42302739,47375.0,47374.0,0.02]
[1641088211219,0.60302739,47375.0,47374.0,0.02]
[1641088211621,0.41102739,47375.0,47374.0,0.02]
[1641088212219,0.60302739,47375.0,47374.0,0.02]
[1641088212619,0.42302739,47375.0,47374.0,0.02]
[1641088212820,1.7263398,47375.0,47374.0,0.02]
[1641088213620,1.5343398,47375.0,47374.0,0.02]
[1641088214223,0.42302739,47375.0,47374.0,0.02]
[1641088215525,0.23102739,47375.0,47374.0,0.02]
[1641088216225,0.42302739,47375.0,47374.0,0.02]
[1641088217529,0.23102739,47375.0,47374.0,0.02]
[1641088218229,0.42702739,47375.0,47374.0,0.02]
[1641088218729,1.61088154,47375.0,47374.0,0.02]
[1641088219431,0.42702739,47375.0,47374.0,0.02]
[1641088219729,0.23102739,47375.0,47374.0,0.02]
[1641088220229,0.42402739,47375.0,47374.0,0.02]
[1641088221633,0.23102739,47375.0,47374.0,0.02]
[1641088222032,0.14033567,47375.0,47374.0,0.02]
[1641088222233,0.33733567,47375.0,47374.0,0.02]
[1641088223035,0.42732303,47375.0,47374.0,0.02]
[1641088223634,0.23032303,47375.0,47374.0,0.02]
[1641088224236,0.42432303,47375.0,47374.0,0.02]
[1641088225739,0.23032303,47375.0,47374.0,0.02]
[1641088226338,0.42232303,47375.0,47374.0,0.02]
[1641088226537,0.60232303,47375.0,47374.0,0.02]
[1641088226741,0.42232303,47375.0,47374.0,0.02]
[1641088227739,0.23032303,47375.0,47374.0,0.02]
[1641088227938,0.41032303,47375.0,47374.0,0.02]
[1641088228338,0.60232303,47375.0,47374.0,0.02]
[1641088229638,0.41032303,47375.0,47374.0,0.02]
[1641088230242,0.60132303,47375.0,47374.0,0.02]
[1641088231542,0.41032303,47375.0,47374.0,0.02]
[1641088232243,0.60132303,47375.0,47374.0,0.02]
[1641088233047,0.42132303,47375.0,47374.0,0.02]
[1641088233245,0.60132303,47375.0,47374.0,0.02]
[1641088233547,0.41032303,47375.0,47374.0,0.02]
[1641088234247,0.60232303,47375.0,47374.0,0.02]
[1641088234447,0.42232303,47375.0,47374.0,0.02]
[1641088234648,1.72684241,47375.0,47374.0,0.02]
[1641088235047,0.42232303,47375.0,47374.0,0.02]
[1641088235549,0.23032303,47375.0,47374.0,0.02]
[1641088236246,0.42532303,47375.0,47374.0,0.02]
[1641088237547,0.23032303,47375.0,47374.0,0.02]
[1641088238251,0.42832303,47375.0,47374.0,0.02]
[1641088238449,1.73284241,47375.0,47374.0,0.02]
[1641088239654,1.53484241,47375.0,47374.0,0.02]
[1641088240254,1.73284241,47375.0,47374.0,0.02]
[1641088240460,0.42832303,47375.0,47374.0,0.02]
[1641088241561,0.23032303,47375.0,47374.0,0.02]
[1641088241760,1.65343508,47375.0,47374.0,0.02]
[1641088242362,1.84443508,47375.0,47374.0,0.02]
[1641088243667,1.65343508,47375.0,47374.0,0.02]
[1641088243863,1.83343508,47375.0,47374.0,0.02]
[1641088244273,2.02443508,47375.0,47374.0,0.02]
[1641088245464,1.84443508,47375.0,47374.0,0.02]
[1641088245665,1.65343508,47375.0,47374.0,0.02]
[1641088246268,1.85143508,47375.0,47374.0,0.02]
[1641088247066,0.42832303,47375.0,47374.0,0.02]
[1641088247567,0.23032303,47375.0,47374.0,0.02]
[1641088248370,0.42232303,47375.0,47374.0,0.02]
[1641088249070,1.84543508,47375.0,47374.0,0.02]
[1641088249670,1.65343508,47375.0,47374.0,0.02]
[1641088250274,1.84543508,47375.0,47374.0,0.02]
[1641088251376,1.70509941,47375.0,47374.0,0.02]
[1641088251574,1.51309941,47375.0,47374.0,0.02]
[1641088251975,1.42311205,47375.0,47374.0,0.02]
[1641088252275,1.61511205,47375.0,47374.0,0.02]
[1641088252477,1.70509941,47375.0,47374.0,0.02]
[1641088252678,1.84543508,47375.0,47374.0,0.02]
[1641088253677,1.65343508,47375.0,47374.0,0.02]
[1641088254280,1.84543508,47375.0,47374.0,0.02]
[1641088255682,1.65343508,47375.0,47374.0,0.02]
[1641088256282,1.85143508,47375.0,47374.0,0.02]
[1641088256585,0.42832303,47375.0,47374.0,0.02]
[1641088257587,0.23032303,47375.0,47374.0,0.02]
[1641088258283,0.41932303,47375.0,47374.0,0.121]
[1641088259190,0.69086303,47375.0,47374.0,0.121]
[1641088259587,0.50186303,47375.0,47374.0,0.02]
[1641088260288,0.51086303,47375.0,47374.0,0.113]
[1641088260588,0.69086303,47375.0,47374.0,0.113]
[1641088261589,1.113794,47374.0,47367.0,1.19884479]
[1641088261792,0.18,47368.0,47367.0,1.19884479]
[1641088261989,0.189794,47368.0,47367.0,1.19884479]
[1641088262389,0.375794,47368.0,47367.0,1.19884479]
[1641088262590,0.375794,47368.0,47362.0,1.19884479]
[1641088262790,0.18,47363.0,47362.0,1.19884479]
[1641088262991,0.274404,47363.0,47362.0,1.19884479]
[1641088263593,1.58890738,47363.0,47359.0,1.19884479]
[1641088263792,0.18,47362.0,47359.0,1.19884479]
[1641088264195,0.369,47362.0,47359.0,1.19884479]
[1641088264796,0.45898736,47362.0,47359.0,1.19884479]
[1641088264996,1.19529432,47360.0,47359.0,1.19884479]
[1641088266199,1.38629432,47360.0,47359.0,1.19884479]
[1641088267601,1.19529432,47360.0,47359.0,1.19884479]
[1641088267799,1.28528168,47360.0,47359.0,1.19884479]
[1641088268199,1.47628168,47360.0,47359.0,1.19884479]
[1641088269505,1.28528168,47360.0,47359.0,1.19884479]